[Event "Commonwealth Open 2019"]
[Site "Delhi"]
[Date "2019.07.03"]
[Round "5.19"]
[White "Mahalakshmi, M."]
[Black "Sa, Kannan"]
[Result "1/2-1/2"]
[ECO "D45"]
[WhiteElo "2245"]
[BlackElo "1947"]
[Annotator "NA"]
[PlyCount "84"]
[EventDate "2019.06.30"]
[EventType "swiss"]
[EventCountry "IND"]
[SourceTitle "playchess.com"]
[Source "ChessBase"]
[SourceQuality "1"]
[TimeControl "5400+30"]

1. d4 {[%emt 0:00:00]} d5 {[%emt 0:06:04]} 2. c4 {[%emt 0:00:00]} e6 {[%emt 0:00:17]} 3. Nf3 {[%emt 0:00:00]} Nf6 {[%emt 0:01:26]} 4. Nc3 {[%emt 0:00:00]} c6 {[%emt 0:00:25]} 5. e3 {[%emt 0:00:00]} Nbd7 {[%emt 0:01:02]} 6. Qc2 {[%emt 0:00:00]} Bd6 {[%emt 0:00:32]} 7. Bd3 {[%emt 0:00:51]} dxc4 {[%emt 0:01:28]} 8. Bxc4 {[%emt 0:00:02]} O-O {[%emt 0:00:52]} 9. O-O {[%emt 0:00:28]} e5 {[%emt 0:03:27]} 10. h3 {[%emt 0:07:21]} Qe7 {[%emt 0:01:49]} 11. Bb3 {[%emt 0:00:51]} h6 {[%emt 0:02:40]} 12. Nh4 {[%emt 0:06:00]} Re8 {[%emt 0:06:46]} 13. Nf5 {[%emt 0:05:21]} Qf8 {[%emt 0:01:24]} 14. Nxd6 {[%emt 0:00:28]} Qxd6 {[%emt 0:00:06]} 15. Rd1 {[%emt 0:01:29]} e4 {[%emt 0:10:30]} 16. d5 {[%emt 0:13:27]} Nb6 {[%emt 0:01:55]} 17. dxc6 {[%emt 0:02:19]} Qxc6 {[%emt 0:01:58]} 18. Na4 {[%emt 0:00:51]} Qxc2 {[%emt 0:05:37]} 19. Bxc2 {[%emt 0:00:02]} Be6 {[%emt 0:00:01]} 20. Bd2 {[%emt 0:03:46]} Rec8 {[%emt 0:10:21]} 21. Bc3 {[%emt 0:04:04]} Nbd5 {[%emt 0:01:05]} 22. Bb3 {[%emt 0:07:47]} b5 {[%emt 0:07:32]} 23. Bxf6 {[%emt 0:01:07]} Nxf6 {[%emt 0:00:54]} 24. Bxe6 {[%emt 0:01:29]} fxe6 {[%emt 0:00:10]} 25. Nc3 {[%emt 0:00:02]} b4 {[%emt 0:00:10]} 26. Na4 {[%emt 0:02:44]} Rc2 {[%emt 0:06:47]} 27. Rd6 {[%emt 0:05:49]} Kf7 {[%emt 0:07:51]} 28. Rad1 {[%emt 0:01:44]} Rac8 {[%emt 0:02:22]} 29. Ra6 {[%emt 0:03:36]} R8c7 {[%emt 0:00:27]} 30. Rdd6 {[%emt 0:01:11]} Rc1+ {[%emt 0:02:47]} 31. Kh2 {[%emt 0:00:01]} R7c2 {[%emt 0:00:13]} 32. Rxa7+ {[%emt 0:01:29]} Kg8 {[%emt 0:02:38]} 33. Rd8+ {[%emt 0:08:51]} Kh7 {[%emt 0:00:20]} 34. Rf8 {[%emt 0:00:09]} Re2 {[%emt 0:07:46]} 35. Rff7 {[%emt 0:03:58]} Kg6 {[%emt 0:00:30]} 36. Rxg7+ {[%emt 0:03:04]} Kf5 {[%emt 0:00:17]} 37. Rab7 {[%emt 0:03:37]} h5 {[%emt 0:05:35]} 38. Rb5+ {[%emt 0:04:17]} e5 {[%emt 0:00:11]} 39. Re7 {[%emt 0:00:43]} h4 {[%emt 0:02:01]} 40. Rexe5+ {[%emt 0:05:59]} Kg6 {[%emt 0:00:02]} 41. Rg5+ {[%emt 0:03:27]} Kh6 {[%emt 0:00:02]} 42. Rgf5 {[%emt 0:00:25]} Nh5 {[%emt 0:00:37]} 1/2-1/2

[Event "Commonwealth Open 2019"]
[Site "Delhi"]
[Date "2019.07.03"]
[Round "5.20"]
[White "Saurabh, Anand"]
[Black "Bhatt, Jalpan"]
[Result "1/2-1/2"]
[ECO "B35"]
[WhiteElo "2351"]
[BlackElo "2001"]
[Annotator "NA"]
[PlyCount "61"]
[EventDate "2019.06.30"]
[EventType "swiss"]
[EventCountry "IND"]
[SourceTitle "playchess.com"]
[Source "ChessBase"]
[SourceQuality "1"]
[TimeControl "5400+30"]

1. e4 {[%emt 0:00:00]} c5 {[%emt 0:00:08]} 2. Nf3 {[%emt 0:00:00]} Nc6 {[%emt 0:00:12]} 3. d4 {[%emt 0:00:35]} cxd4 {[%emt 0:00:03]} 4. Nxd4 {[%emt 0:00:09]} g6 {[%emt 0:00:08]} 5. Nc3 {[%emt 0:00:27]} Bg7 {[%emt 0:00:08]} 6. Be3 {[%emt 0:00:08]} Nf6 {[%emt 0:00:11]} 7. Bc4 {[%emt 0:00:18]} O-O {[%emt 0:00:49]} 8. Bb3 {[%emt 0:00:56]} a5 {[%emt 0:00:46]} 9. O-O {[%emt 0:02:12]} a4 {[%emt 0:01:14]} 10. Nxa4 {[%emt 0:00:12]} Nxe4 {[%emt 0:00:04]} 11. Nb5 {[%emt 0:00:26]} d5 {[%emt 0:01:01]} 12. Bb6 {[%emt 0:05:17]} Qd7 {[%emt 0:00:03]} 13. Qe2 {[%emt 0:01:51]} Ne5 {[%emt 0:11:44]} 14. Rad1 {[%emt 0:01:47]} e6 {[%emt 0:01:40]} 15. f3 {[%emt 0:11:48]} Nd6 {[%emt 0:25:56]} 16. Nxd6 {[%emt 0:01:45]} Qxd6 {[%emt 0:00:02]} 17. Bc5 {[%emt 0:02:03]} Qc7 {[%emt 0:01:04]} 18. Bxf8 {[%emt 0:02:12]} Bxf8 {[%emt 0:01:52]} 19. Nc3 {[%emt 0:01:15]} b6 {[%emt 0:05:16]} 20. Rfe1 {[%emt 0:02:06]} Bd6 {[%emt 0:02:01]} 21. Nxd5 {[%emt 0:20:00]} exd5 {[%emt 0:05:17]} 22. Rxd5 {[%emt 0:00:10]} Ba6 {[%emt 0:02:59]} 23. Qd2 {[%emt 0:00:35]} Nc4 {[%emt 0:06:31]} 24. Bxc4 {[%emt 0:02:57]} Bxh2+ {[%emt 0:07:21]} 25. Kh1 {[%emt 0:00:42]} Bf4 {[%emt 0:03:02]} 26. Qd4 {[%emt 0:07:05]} Qxc4 {[%emt 0:01:07]} 27. b3 {[%emt 0:02:19]} Qxd4 {[%emt 0:05:44]} 28. Rxd4 {[%emt 0:00:06]} g5 {[%emt 0:00:52]} 29. a4 {[%emt 0:01:31]} Kg7 {[%emt 0:01:29]} 30. Re7 {[%emt 0:01:12]} Kf6 {[%emt 0:01:44]} 31. Re1 {[%emt 0:03:32]} 1/2-1/2

[Event "Commonwealth Open 2019"]
[Site "Delhi"]
[Date "2019.07.03"]
[Round "5.21"]
[White "Anilkumar, O.T."]
[Black "Mohota, Nisha"]
[Result "1-0"]
[ECO "D04"]
[WhiteElo "1989"]
[BlackElo "2221"]
[Annotator "NA"]
[PlyCount "77"]
[EventDate "2019.06.30"]
[EventType "swiss"]
[EventCountry "IND"]
[SourceTitle "playchess.com"]
[Source "ChessBase"]
[SourceQuality "1"]
[TimeControl "5400+30"]

1. d4 {[%emt 0:00:00]} Nf6 {[%emt 0:00:00]} 2. Nf3 {[%emt 0:00:00]} d5 {[%emt 0:00:00]} 3. e3 {[%emt 0:00:00]} c6 {[%emt 0:00:44]} 4. Be2 {[%emt 0:00:00]} g6 {[%emt 0:00:39]} 5. Nbd2 {[%emt 0:00:04]} Bg7 {[%emt 0:00:29]} 6. O-O {[%emt 0:00:11]} Nbd7 {[%emt 0:05:19]} 7. c4 {[%emt 0:00:25]} O-O {[%emt 0:00:29]} 8. b3 {[%emt 0:00:04]} a6 {[%emt 0:06:28]} 9. Bb2 {[%emt 0:00:10]} e6 {[%emt 0:02:14]} 10. Qc2 {[%emt 0:00:14]} b5 11. cxd5 {[%emt 0:03:26]} cxd5 {[%emt 0:15:26]} 12. Ba3 {[%emt 0:00:50]} Re8 {[%emt 0:00:12]} 13. Rfc1 {[%emt 0:00:09]} Ra7 {[%emt 0:14:48]} 14. Bd6 {[%emt 0:00:29]} Bb7 {[%emt 0:06:10]} 15. a4 {[%emt 0:00:15]} bxa4 {[%emt 0:02:55]} 16. bxa4 {[%emt 0:00:41]} Ne4 {[%emt 0:01:47]} 17. Nxe4 {[%emt 0:05:33]} dxe4 {[%emt 0:00:03]} 18. Nd2 {[%emt 0:00:26]} Qa8 {[%emt 0:11:28]} 19. a5 {[%emt 0:03:01]} e5 {[%emt 0:01:23]} 20. Qa4 {[%emt 0:08:57]} exd4 {[%emt 0:05:33]} 21. Rc7 {[%emt 0:23:06]} Bc8 {[%emt 0:08:57]} 22. Rac1 {[%emt 0:04:16]} dxe3 {[%emt 0:06:22]} 23. fxe3 {[%emt 0:00:25]} h5 {[%emt 0:03:10]} 24. Qb3 {[%emt 0:10:51]} Be5 {[%emt 0:05:16]} 25. Bxe5 {[%emt 0:04:52]} Nxe5 {[%emt 0:00:15]} 26. Nxe4 {[%emt 0:08:01]} Qxe4 {[%emt 0:01:50]} 27. Rxa7 {[%emt 0:00:28]} Be6 {[%emt 0:00:02]} 28. Qc3 {[%emt 0:07:27]} Bd5 {[%emt 0:00:04]} 29. Bf1 {[%emt 0:00:06]} Ng4 {[%emt 0:01:18]} 30. Qd4 {[%emt 0:00:45]} Qf5 {[%emt 0:00:19]} 31. Qf4 {[%emt 0:00:06]} Nxe3 {[%emt 0:01:14]} 32. Qxf5 {[%emt 0:00:04]} gxf5 {[%emt 0:00:15]} 33. Rxa6 {[%emt 0:00:05]} f4 {[%emt 0:00:41]} 34. Rd6 {[%emt 0:01:27]} Re5 {[%emt 0:00:14]} 35. a6 {[%emt 0:00:35]} Rg5 {[%emt 0:00:23]} 36. Rc5 {[%emt 0:01:37]} f3 {[%emt 0:00:44]} 37. a7 {[%emt 0:01:13]} fxg2 {[%emt 0:00:44]} 38. Bd3 {[%emt 0:00:14]} Kf8 {[%emt 0:00:32]} 39. Rdxd5 {[%emt 0:00:11]} 1-0

[Event "Commonwealth Open 2019"]
[Site "Delhi"]
[Date "2019.07.03"]
[Round "5.22"]
[White "Aaryan Varshney"]
[Black "Parthasarathy, R."]
[Result "1/2-1/2"]
[ECO "E94"]
[WhiteElo "2284"]
[BlackElo "1988"]
[Annotator "NA"]
[PlyCount "60"]
[EventDate "2019.06.30"]
[EventType "swiss"]
[EventCountry "IND"]
[SourceTitle "playchess.com"]
[Source "ChessBase"]
[SourceQuality "1"]
[TimeControl "5400+30"]

1. d4 {[%emt 0:00:00]} Nf6 {[%emt 0:00:35]} 2. Nf3 {[%emt 0:00:00]} g6 {[%emt 0:00:09]} 3. c4 {[%emt 0:00:00]} Bg7 {[%emt 0:00:47]} 4. Nc3 {[%emt 0:00:00]} O-O {[%emt 0:00:15]} 5. e4 {[%emt 0:00:00]} d6 {[%emt 0:01:15]} 6. Be2 {[%emt 0:00:00]} e5 {[%emt 0:00:08]} 7. O-O {[%emt 0:00:07]} Na6 {[%emt 0:00:30]} 8. Be3 {[%emt 0:01:35]} c6 {[%emt 0:00:28]} 9. d5 {[%emt 0:10:18]} Ng4 {[%emt 0:00:09]} 10. Bd2 {[%emt 0:03:28]} f5 {[%emt 0:03:44]} 11. a3 {[%emt 0:07:43]} Nf6 {[%emt 0:30:34]} 12. b4 {[%emt 0:02:21]} c5 {[%emt 0:08:17]} 13. Ng5 {[%emt 0:11:09]} h6 {[%emt 0:13:56]} 14. Ne6 {[%emt 0:00:30]} Bxe6 {[%emt 0:00:03]} 15. dxe6 {[%emt 0:00:02]} Nc7 {[%emt 0:02:09]} 16. exf5 {[%emt 0:06:29]} gxf5 {[%emt 0:00:14]} 17. Qb1 {[%emt 0:00:57]} e4 {[%emt 0:04:00]} 18. bxc5 {[%emt 0:02:31]} dxc5 {[%emt 0:00:12]} 19. Rd1 {[%emt 0:02:21]} Nxe6 {[%emt 0:01:18]} 20. Bxh6 {[%emt 0:01:11]} Qc7 {[%emt 0:13:28]} 21. Nd5 {[%emt 0:10:51]} Qf7 {[%emt 0:00:36]} 22. Bxg7 {[%emt 0:01:44]} Qxg7 {[%emt 0:00:31]} 23. Qb2 {[%emt 0:05:10]} Nxd5 {[%emt 0:10:47]} 24. Qxg7+ {[%emt 0:03:11]} Kxg7 {[%emt 0:00:02]} 25. Rxd5 {[%emt 0:05:41]} Nf4 {[%emt 0:00:09]} 26. Rd7+ {[%emt 0:00:24]} Rf7 {[%emt 0:00:05]} 27. Rxf7+ {[%emt 0:00:20]} Kxf7 {[%emt 0:00:02]} 28. Bf1 {[%emt 0:00:39]} Rd8 {[%emt 0:01:17]} 29. Rb1 {[%emt 0:00:28]} b6 {[%emt 0:00:37]} 30. a4 {[%emt 0:02:02]} Rd4 {[%emt 0:07:19]} 1/2-1/2

[Event "Commonwealth Open 2019"]
[Site "Delhi"]
[Date "2019.07.04"]
[Round "6.1"]
[White "Gupta, Abhijeet"]
[Black "Debashis, Das"]
[Result "1-0"]
[ECO "D26"]
[WhiteElo "2606"]
[BlackElo "2544"]
[Annotator "ChessBase"]
[PlyCount "126"]
[EventDate "2019.06.30"]
[EventType "swiss"]
[EventCountry "IND"]
[SourceTitle "playchess.com"]
[Source "ChessBase"]
[SourceQuality "1"]
[TimeControl "5400+30"]

1. d4 {[%emt 0:00:10]} d5 {[%emt 0:00:00]} 2. c4 {[%emt 0:00:15]} dxc4 {[%emt 0:00:00]} 3. Nf3 {[%emt 0:00:47]} Nf6 {[%emt 0:00:00]} 4. e3 {[%emt 0:00:06]} e6 {[%emt 0:00:00]} 5. Bxc4 {[%emt 0:00:04]} c5 {[%emt 0:00:00]} 6. O-O {[%emt 0:00:07]} Nc6 {[%emt 0:00:00]} 7. Nc3 {[%emt 0:08:30]} a6 {[%emt 0:00:05]} 8. dxc5 {[%emt 0:03:31]} Qxd1 {[%emt 0:03:32]} 9. Rxd1 {[%emt 0:00:04]} Bxc5 {[%emt 0:00:06]} 10. b3 {[%emt 0:01:21]} Bd7 {[%emt 0:12:33]} 11. Bb2 {[%emt 0:01:57]} Rd8 {[%emt 0:00:06]} 12. Be2 {[%emt 0:03:53]} Be7 {[%emt 0:04:57]} 13. Na4 {[%emt 0:01:55]} O-O {[%emt 0:04:09]} 14. Nb6 {[%emt 0:02:35]} Be8 {[%emt 0:00:40]} 15. Rxd8 {[%emt 0:01:11]} Bxd8 {[%emt 0:00:41]} 16. Nc8 {[%emt 0:02:23]} Bd7 {[%emt 0:05:20]} 17. Nd6 {[%emt 0:00:19]} Be7 {[%emt 0:00:06]} 18. Rd1 {[%emt 0:04:31]} Bxd6 {[%emt 0:02:27]} 19. Rxd6 {[%emt 0:00:04]} Rd8 {[%emt 0:00:22]} 20. Ne5 {[%emt 0:06:03]} Be8 {[%emt 0:10:00]} 21. Nc4 {[%emt 0:03:31]} Nd5 {[%emt 0:02:05]} 22. e4 {[%emt 0:04:59]} Nde7 {[%emt 0:00:06]} 23. Rxd8 {[%emt 0:04:06]} Nxd8 {[%emt 0:00:05]} 24. Nd6 {[%emt 0:00:13]} Bd7 {[%emt 0:01:07]} 25. f4 {[%emt 0:04:38]} Nc8 {[%emt 0:02:49]} 26. Nc4 {[%emt 0:00:03]} Bb5 {[%emt 0:01:04]} 27. Kf2 {[%emt 0:00:25]} f6 {[%emt 0:03:53]} 28. Ke3 {[%emt 0:01:55]} Kf7 {[%emt 0:04:00]} 29. g4 {[%emt 0:00:05]} Bxc4 {[%emt 0:04:03]} 30. Bxc4 {[%emt 0:00:41]} Nb6 {[%emt 0:00:23]} 31. Be2 {[%emt 0:02:28]} Nc6 {[%emt 0:00:16]} 32. h4 {[%emt 0:01:50]} h6 {[%emt 0:00:29]} 33. Bc3 {[%emt 0:03:24]} Ke7 {[%emt 0:01:48]} 34. Bb2 {[%emt 0:01:17]} Kf7 {[%emt 0:01:32]} 35. Bd1 {[%emt 0:00:07]} Ke7 {[%emt 0:00:06]} 36. Ba3+ {[%emt 0:00:50]} Kf7 {[%emt 0:00:16]} 37. Bc5 {[%emt 0:00:27]} Nd7 {[%emt 0:00:48]} 38. Bd6 {[%emt 0:00:09]} Nf8 {[%emt 0:03:11]} 39. b4 {[%emt 0:01:35]} e5 {[%emt 0:11:44]} 40. Bb3+ {[%emt 0:00:28]} Ke8 {[%emt 0:00:07]} 41. f5 {[%emt 0:01:41]} Nd7 {[%emt 0:00:23]} 42. Bd5 {[%emt 0:07:48]} Nb6 {[%emt 0:00:23]} 43. Bxc6+ {[%emt 0:00:48]} bxc6 {[%emt 0:00:10]} 44. Kd3 {[%emt 0:00:03]} Nd7 {[%emt 0:11:48]} 45. Bc7 {[%emt 0:00:22]} Kf7 {[%emt 0:04:07]} 46. Kc4 {[%emt 0:01:13]} g6 {[%emt 0:00:04]} 47. h5 {[%emt 0:00:53]} gxh5 {[%emt 0:00:24]} 48. gxh5 {[%emt 0:00:04]} Ke7 {[%emt 0:00:32]} 49. a4 {[%emt 0:08:01]} Nf8 {[%emt 0:03:04]} 50. Kc5 {[%emt 0:04:07]} Kd7 {[%emt 0:00:03]} 51. Ba5 {[%emt 0:03:10]} Nh7 {[%emt 0:00:18]} 52. Kb6 {[%emt 0:00:10]} Ng5 {[%emt 0:00:12]} 53. Kxa6 {[%emt 0:00:05]} Nxe4 {[%emt 0:00:56]} 54. b5 {[%emt 0:00:27]} cxb5 {[%emt 0:04:55]} 55. axb5 {[%emt 0:00:07]} Nc5+ {[%emt 0:02:04]} 56. Ka7 {[%emt 0:00:05]} Nb3 {[%emt 0:00:49]} 57. Bc3 {[%emt 0:02:20]} Nd4 {[%emt 0:01:02]} 58. b6 {[%emt 0:00:36]} Nxf5 {[%emt 0:00:55]} 59. b7 {[%emt 0:01:10]} Ne7 {[%emt 0:00:07]} 60. Kb6 {[%emt 0:01:11]} Nc6 {[%emt 0:00:15]} 61. Bd2 {[%emt 0:00:05]} Nb8 {[%emt 0:00:28]} 62. Bxh6 {[%emt 0:00:26]} Ke6 {[%emt 0:00:01]} 63. Bf8 {[%emt 0:01:18]} Kd5 1-0

[Event "Commonwealth Open 2019"]
[Site "Delhi"]
[Date "2019.07.04"]
[Round "6.2"]
[White "Kulkarni, Bhakti"]
[Black "Narayanan.S.L"]
[Result "1/2-1/2"]
[ECO "D37"]
[WhiteElo "2380"]
[BlackElo "2603"]
[Annotator "ChessBase"]
[PlyCount "90"]
[EventDate "2019.06.30"]
[EventType "swiss"]
[EventCountry "IND"]
[SourceTitle "playchess.com"]
[Source "ChessBase"]
[SourceQuality "1"]
[TimeControl "5400+30"]

1. d4 {[%emt 0:00:00]} Nf6 {[%emt 0:00:00]} 2. c4 {[%emt 0:00:13]} e6 {[%emt 0:00:00]} 3. Nf3 {[%emt 0:00:36]} d5 {[%emt 0:00:00]} 4. Nc3 {[%emt 0:00:37]} dxc4 {[%emt 0:00:00]} 5. e3 {[%emt 0:01:54]} a6 {[%emt 0:00:02]} 6. a4 {[%emt 0:01:59]} b6 {[%emt 0:00:25]} 7. Bxc4 {[%emt 0:00:18]} Bb7 {[%emt 0:00:06]} 8. O-O {[%emt 0:00:51]} Bb4 {[%emt 0:00:05]} 9. Qe2 {[%emt 0:02:03]} Nbd7 {[%emt 0:02:17]} 10. Bd2 {[%emt 0:02:52]} O-O {[%emt 0:05:29]} 11. Rfd1 {[%emt 0:03:20]} Qe7 {[%emt 0:02:05]} 12. Rac1 {[%emt 0:00:38]} e5 {[%emt 0:06:20]} 13. Nxe5 {[%emt 0:11:46]} Nxe5 {[%emt 0:00:10]} 14. dxe5 {[%emt 0:00:06]} Qxe5 {[%emt 0:00:06]} 15. f4 {[%emt 0:08:47]} Qe7 {[%emt 0:09:07]} 16. Nd5 {[%emt 0:07:30]} Bxd5 {[%emt 0:06:25]} 17. Bxb4 {[%emt 0:00:08]} Bxc4 {[%emt 0:19:11]} 18. Rxc4 {[%emt 0:00:41]} c5 {[%emt 0:00:05]} 19. Bc3 {[%emt 0:01:18]} Ne8 {[%emt 0:03:58]} 20. f5 {[%emt 0:08:07]} b5 {[%emt 0:03:23]} 21. Rf4 {[%emt 0:02:54]} f6 {[%emt 0:09:03]} 22. axb5 {[%emt 0:11:31]} axb5 {[%emt 0:00:05]} 23. Qxb5 {[%emt 0:02:02]} Qxe3+ {[%emt 0:00:08]} 24. Rf2 {[%emt 0:00:04]} Nd6 {[%emt 0:00:24]} 25. Qe2 {[%emt 0:00:05]} Qe4 {[%emt 0:07:55]} 26. Qxe4 {[%emt 0:11:06]} Nxe4 {[%emt 0:00:05]} 27. Re2 {[%emt 0:00:08]} Ra4 {[%emt 0:01:45]} 28. Be1 {[%emt 0:01:36]} Re8 {[%emt 0:02:02]} 29. b4 {[%emt 0:04:17]} Raa8 {[%emt 0:03:55]} 30. bxc5 {[%emt 0:05:57]} Nxc5 {[%emt 0:00:04]} 31. Rxe8+ {[%emt 0:00:37]} Rxe8 {[%emt 0:00:07]} 32. Bb4 {[%emt 0:03:13]} Ne4 {[%emt 0:00:06]} 33. g4 {[%emt 0:00:23]} h5 {[%emt 0:00:47]} 34. gxh5 {[%emt 0:03:04]} Kh7 {[%emt 0:05:58]} 35. Re1 {[%emt 0:00:49]} Kh6 {[%emt 0:02:26]} 36. Bd2+ {[%emt 0:02:03]} Kxh5 {[%emt 0:00:32]} 37. h3 {[%emt 0:00:05]} g6 {[%emt 0:03:11]} 38. fxg6 {[%emt 0:00:14]} Kxg6 {[%emt 0:00:11]} 39. Kg2 {[%emt 0:00:28]} f5 {[%emt 0:00:47]} 40. Bf4 {[%emt 0:00:30]} Kh5 {[%emt 0:00:28]} 41. Rb1 {[%emt 0:01:35]} Rg8+ {[%emt 0:04:53]} 42. Kf3 {[%emt 0:00:13]} Rc8 {[%emt 0:01:14]} 43. Rb6 {[%emt 0:00:30]} Rc3+ {[%emt 0:00:03]} 44. Kg2 {[%emt 0:00:12]} Ng5 {[%emt 0:00:06]} 45. Bxg5 {[%emt 0:00:35]} Kxg5 {[%emt 0:00:06]} 1/2-1/2

[Event "Commonwealth Open 2019"]
[Site "Delhi"]
[Date "2019.07.04"]
[Round "6.3"]
[White "Aravindh, Chithambaram Vr."]
[Black "Swapnil, S. Dhopade"]
[Result "1/2-1/2"]
[ECO "D40"]
[WhiteElo "2598"]
[BlackElo "2488"]
[Annotator "ChessBase"]
[PlyCount "134"]
[EventDate "2019.06.30"]
[EventType "swiss"]
[EventCountry "IND"]
[SourceTitle "playchess.com"]
[Source "ChessBase"]
[SourceQuality "1"]
[TimeControl "5400+30"]

1. d4 {[%emt 0:00:00]} Nf6 {[%emt 0:00:00]} 2. c4 {[%emt 0:00:00]} e6 {[%emt 0:01:31]} 3. Nf3 {[%emt 0:00:07]} d5 {[%emt 0:00:14]} 4. Nc3 {[%emt 0:00:09]} c5 {[%emt 0:00:36]} 5. Bg5 {[%emt 0:00:11]} cxd4 {[%emt 0:03:10]} 6. Nxd4 {[%emt 0:00:23]} Be7 {[%emt 0:20:54]} 7. cxd5 {[%emt 0:01:35]} exd5 {[%emt 0:01:48]} 8. e3 {[%emt 0:01:46]} O-O {[%emt 0:00:14]} 9. Be2 {[%emt 0:00:10]} Nc6 {[%emt 0:00:20]} 10. O-O {[%emt 0:00:28]} Be6 {[%emt 0:04:31]} 11. Qd2 {[%emt 0:07:20]} Rc8 {[%emt 0:07:36]} 12. Rfd1 {[%emt 0:01:04]} Ne5 {[%emt 0:00:42]} 13. Rac1 {[%emt 0:05:46]} Nc4 {[%emt 0:08:40]} 14. Qc2 {[%emt 0:09:54]} Qb6 {[%emt 0:07:36]} 15. b3 {[%emt 0:02:50]} Nd6 {[%emt 0:02:09]} 16. Qb2 {[%emt 0:05:04]} Rfd8 {[%emt 0:07:30]} 17. h3 {[%emt 0:04:42]} a6 {[%emt 0:03:02]} 18. Rc2 {[%emt 0:14:12]} h6 {[%emt 0:04:45]} 19. Bh4 {[%emt 0:02:23]} Nf5 {[%emt 0:04:52]} 20. Nxf5 {[%emt 0:01:01]} Bxf5 {[%emt 0:00:02]} 21. Bd3 {[%emt 0:00:07]} Bxd3 {[%emt 0:05:02]} 22. Rxd3 {[%emt 0:00:05]} d4 {[%emt 0:00:28]} 23. Nd1 {[%emt 0:04:13]} Rxc2 {[%emt 0:07:12]} 24. Qxc2 {[%emt 0:00:05]} dxe3 {[%emt 0:01:09]} 25. Nxe3 {[%emt 0:00:32]} Rxd3 {[%emt 0:00:09]} 26. Qxd3 {[%emt 0:00:03]} g6 {[%emt 0:03:03]} 27. Qc3 {[%emt 0:07:02]} Qe6 {[%emt 0:00:05]} 28. Qc7 {[%emt 0:00:33]} b5 {[%emt 0:00:22]} 29. Qb7 {[%emt 0:04:51]} g5 {[%emt 0:03:21]} 30. Bg3 {[%emt 0:01:19]} Ne4 {[%emt 0:00:02]} 31. Bb8 {[%emt 0:04:32]} Bc5 {[%emt 0:00:24]} 32. Ba7 {[%emt 0:00:09]} Bxa7 {[%emt 0:01:50]} 33. Qxa7 {[%emt 0:00:04]} Nc3 {[%emt 0:01:25]} 34. Qc5 {[%emt 0:03:49]} Ne2+ {[%emt 0:00:58]} 35. Kh2 {[%emt 0:00:36]} Nf4 {[%emt 0:00:04]} 36. Ng4 {[%emt 0:00:58]} Kg7 {[%emt 0:00:38]} 37. g3 {[%emt 0:01:02]} Nd5 {[%emt 0:00:47]} 38. Qd4+ {[%emt 0:00:59]} f6 {[%emt 0:00:04]} 39. Kg2 {[%emt 0:00:04]} Qc6 {[%emt 0:01:17]} 40. Kg1 {[%emt 0:00:41]} Qe6 {[%emt 0:00:24]} 41. Nh2 {[%emt 0:00:24]} Ne7 {[%emt 0:00:43]} 42. Qc5 {[%emt 0:02:24]} Nf5 {[%emt 0:00:47]} 43. Nf3 {[%emt 0:00:44]} Qe4 {[%emt 0:00:16]} 44. Nd2 {[%emt 0:01:15]} Qe1+ {[%emt 0:00:12]} 45. Nf1 {[%emt 0:00:06]} Qe4 {[%emt 0:00:57]} 46. Qc7+ {[%emt 0:02:28]} Kg6 {[%emt 0:00:05]} 47. Qc8 {[%emt 0:00:08]} Kg7 {[%emt 0:00:31]} 48. Qd7+ {[%emt 0:10:00]} Kg6 {[%emt 0:00:12]} 49. Qd8 {[%emt 0:00:03]} Kg7 {[%emt 0:00:03]} 50. g4 {[%emt 0:01:13]} Nh4 {[%emt 0:00:04]} 51. Ne3 {[%emt 0:00:32]} Qf3 {[%emt 0:00:47]} 52. Qd7+ {[%emt 0:01:32]} Kg6 {[%emt 0:00:40]} 53. Qe8+ {[%emt 0:03:08]} Kg7 {[%emt 0:00:05]} 54. Qd7+ {[%emt 0:00:03]} Kg6 {[%emt 0:00:04]} 55. Qd5 {[%emt 0:00:31]} Qxd5 {[%emt 0:00:38]} 56. Nxd5 {[%emt 0:00:05]} Nf3+ {[%emt 0:00:07]} 57. Kg2 {[%emt 0:00:17]} Nd4 {[%emt 0:00:06]} 58. b4 {[%emt 0:01:33]} Nc6 {[%emt 0:00:44]} 59. Kf3 {[%emt 0:01:01]} f5 {[%emt 0:00:19]} 60. Ke3 {[%emt 0:00:07]} h5 {[%emt 0:00:24]} 61. f3 {[%emt 0:00:38]} fxg4 {[%emt 0:01:01]} 62. fxg4 {[%emt 0:00:04]} hxg4 {[%emt 0:00:19]} 63. hxg4 {[%emt 0:00:04]} Ne5 {[%emt 0:00:03]} 64. Nc7 {[%emt 0:00:06]} Nxg4+ {[%emt 0:00:06]} 65. Kf3 {[%emt 0:00:29]} Kf5 {[%emt 0:00:32]} 66. Nxa6 {[%emt 0:00:08]} Ne5+ {[%emt 0:00:05]} 67. Kg3 {[%emt 0:00:05]} Nc6 {[%emt 0:00:35]} 1/2-1/2

[Event "Commonwealth Open 2019"]
[Site "Delhi"]
[Date "2019.07.04"]
[Round "6.5"]
[White "Erigaisi, Arjun"]
[Black "Ajay Karthikeyan"]
[Result "1-0"]
[ECO "B06"]
[WhiteElo "2526"]
[BlackElo "2216"]
[Annotator "ChessBase"]
[PlyCount "57"]
[EventDate "2019.06.30"]
[EventType "swiss"]
[EventCountry "IND"]
[SourceTitle "playchess.com"]
[Source "ChessBase"]
[SourceQuality "1"]
[TimeControl "5400+30"]

1. d4 {[%emt 0:00:00]} d6 {[%emt 0:01:49]} 2. e4 {[%emt 0:01:27]} g6 {[%emt 0:00:25]} 3. Nc3 {[%emt 0:00:55]} Bg7 {[%emt 0:00:47]} 4. Be3 {[%emt 0:01:32]} c6 {[%emt 0:00:18]} 5. Qd2 {[%emt 0:01:52]} b5 {[%emt 0:00:42]} 6. f3 {[%emt 0:00:41]} Nd7 {[%emt 0:00:35]} 7. Rd1 {[%emt 0:05:51]} Nb6 {[%emt 0:04:58]} 8. b3 {[%emt 0:03:06]} Nf6 {[%emt 0:02:52]} 9. Bd3 {[%emt 0:08:10]} O-O {[%emt 0:01:54]} 10. Bh6 {[%emt 0:03:28]} e5 {[%emt 0:03:18]} 11. dxe5 {[%emt 0:04:50]} dxe5 {[%emt 0:00:35]} 12. h4 {[%emt 0:00:13]} b4 {[%emt 0:07:25]} 13. Nce2 {[%emt 0:02:51]} c5 {[%emt 0:00:32]} 14. h5 {[%emt 0:03:51]} Qe7 {[%emt 0:08:50]} 15. g4 {[%emt 0:01:38]} Bxh6 {[%emt 0:10:03]} 16. Qxh6 {[%emt 0:00:20]} Be6 {[%emt 0:01:41]} 17. Ng3 {[%emt 0:05:26]} c4 {[%emt 0:04:51]} 18. bxc4 {[%emt 0:02:20]} Bxc4 {[%emt 0:05:45]} 19. Rd2 {[%emt 0:10:21]} Bxd3 {[%emt 0:04:40]} 20. cxd3 {[%emt 0:00:51]} Rac8 {[%emt 0:08:58]} 21. Rdh2 {[%emt 0:01:24]} Rc7 22. N1e2 {[%emt 0:00:09]} Na4 {[%emt 0:07:54]} 23. g5 {[%emt 0:01:36]} Ne8 {[%emt 0:13:43]} 24. Qxh7+ Kxh7 {[%emt 0:00:01]} 25. hxg6+ {[%emt 0:00:22]} Kg8 {[%emt 0:00:09]} 26. Rh8+ {[%emt 0:00:07]} Kg7 {[%emt 0:00:03]} 27. Nf5+ {[%emt 0:00:07]} Kxg6 {[%emt 0:00:02]} 28. R8h6+ {[%emt 0:00:08]} Kxg5 {[%emt 0:00:03]} 29. R1h5# {[%emt 0:00:08]} 1-0